bitfinex/quotes_BTCUSD_20241103
["timestamp","ask_amount","ask_price","bid_price","bid_amount"]
[1730630250857,0.44798333,68461.0,68460.0,0.082452]
[1730630251072,0.43398333,68461.0,68460.0,0.082452]
[1730630251283,0.50752708,68461.0,68460.0,0.001652]
[1730630251493,0.65359508,68461.0,68460.0,0.001652]
[1730630251691,0.63959508,68461.0,68460.0,0.001652]
[1730630251903,0.758138,68461.0,68460.0,0.001652]
[1730630252106,0.770138,68461.0,68460.0,0.001652]
[1730630252331,0.758138,68461.0,68460.0,0.001652]
[1730630252771,0.765138,68461.0,68460.0,0.001652]
[1730630253487,0.775138,68461.0,68460.0,0.001652]
[1730630253707,0.768138,68461.0,68460.0,0.001652]
[1730630254159,0.58105133,68461.0,68460.0,0.001652]
[1730630254988,0.71259425,68461.0,68460.0,0.001652]
[1730630255185,0.72459425,68461.0,68460.0,0.001652]
[1730630255745,0.60405133,68461.0,68460.0,0.001652]
[1730630256271,0.60405133,68461.0,68460.0,0.001652]
[1730630259376,0.590475,68461.0,68460.0,0.001652]
[1730630259611,0.60412581,68461.0,68460.0,0.001652]
[1730630259818,0.7336529,68461.0,68460.0,0.001652]
[1730630260019,0.7286529,68461.0,68460.0,0.001652]
[1730630260223,0.7336529,68461.0,68460.0,0.001652]
[1730630260650,0.7286529,68461.0,68460.0,0.001652]
[1730630260872,0.7336529,68461.0,68460.0,0.001652]
[1730630265189,0.44805781,68461.0,68460.0,0.082452]
[1730630266119,0.44805781,68461.0,68460.0,0.001652]
[1730630266796,0.59412581,68461.0,68460.0,0.001652]
[1730630268415,0.44805781,68461.0,68460.0,0.001652]
[1730630268639,0.54981848,68461.0,68460.0,0.001652]
[1730630270133,0.44805781,68461.0,68460.0,0.001652]
[1730630270374,0.423407,68461.0,68460.0,0.001652]
[1730630270623,0.58314711,68461.0,68460.0,0.001652]
[1730630270846,0.569475,68461.0,68460.0,0.001652]
[1730630271094,0.58314697,68461.0,68460.0,0.001652]
[1730630271567,0.56114697,68461.0,68460.0,0.001652]
[1730630271815,0.68396877,68461.0,68460.0,0.001652]
[1730630272284,0.67896877,68461.0,68460.0,0.001652]
[1730630272536,0.68896877,68461.0,68460.0,0.001652]
[1730630273016,0.68396877,68461.0,68460.0,0.001652]
[1730630273231,0.68896877,68461.0,68460.0,0.001652]
[1730630274183,0.68897572,68461.0,68460.0,0.001652]
[1730630281279,0.68898974,68461.0,68460.0,0.001652]
[1730630286666,0.57116794,68461.0,68460.0,0.001652]
[1730630287745,0.42509994,68461.0,68460.0,0.001652]
[1730630287958,0.411407,68461.0,68460.0,0.001652]
[1730630288170,0.42510211,68461.0,68460.0,0.001652]
[1730630289894,0.65029346,68461.0,68460.0,0.001652]
[1730630291407,0.7961192,68461.0,68460.0,0.001652]
[1730630292405,0.71699585,68461.0,68460.0,0.001652]
[1730630295248,0.71700048,68461.0,68460.0,0.001652]
[1730630296412,0.79612383,68461.0,68460.0,0.001652]
[1730630301379,0.79612305,68461.0,68460.0,0.001652]
[1730630302530,0.79612297,68461.0,68460.0,0.001652]
[1730630304177,0.71699962,68461.0,68460.0,0.001652]
[1730630313394,0.42510588,68461.0,68460.0,0.001652]
[1730630313616,0.411407,68461.0,68460.0,0.001652]
[1730630313855,0.42510453,68461.0,68460.0,0.001652]
[1730630316667,0.411407,68461.0,68460.0,0.001652]
[1730630316872,0.42510363,68461.0,68460.0,0.001652]
[1730630317991,0.42510363,68461.0,68460.0,0.29351904]
[1730630318214,0.42510363,68461.0,68460.0,0.44751904]
[1730630319313,0.42010363,68461.0,68460.0,0.44751904]
[1730630319925,0.41510363,68461.0,68460.0,0.44751904]
[1730630320886,0.401407,68461.0,68460.0,0.75837659]
[1730630321088,0.401407,68461.0,68460.0,0.70103638]
[1730630321290,0.401407,68461.0,68460.0,0.61290382]
[1730630321493,0.401407,68461.0,68460.0,0.69202717]
[1730630322045,0.401407,68461.0,68460.0,0.70090489]
[1730630322269,0.401407,68461.0,68460.0,0.67812835]
[1730630322480,0.401407,68461.0,68460.0,0.67912835]
[1730630323099,0.401407,68461.0,68460.0,0.67812835]
[1730630323321,0.402407,68461.0,68460.0,0.53535033]
[1730630323667,0.403407,68461.0,68460.0,0.45922698]
[1730630324266,0.403407,68461.0,68460.0,0.50268443]
[1730630324669,0.403407,68461.0,68460.0,0.45922698]
[1730630325254,0.403407,68461.0,68460.0,0.50267078]
[1730630325863,0.403407,68461.0,68460.0,0.45922698]
[1730630331125,0.403407,68461.0,68460.0,0.40992698]
[1730630332584,0.403407,68461.0,68460.0,0.32822698]
[1730630336327,0.403407,68461.0,68460.0,0.15544904]
[1730630336328,0.4438296,68461.0,68460.0,0.15544904]
[1730630336735,0.4438296,68461.0,68460.0,0.009652]
[1730630336736,0.4913296,68461.0,68460.0,0.009652]
[1730630336931,0.6373976,68461.0,68460.0,0.009652]
[1730630337141,0.4913296,68461.0,68460.0,0.009652]
[1730630337398,0.4903296,68461.0,68460.0,0.004652]
[1730630337584,0.4893296,68461.0,68460.0,0.001652]
[1730630337786,0.450907,68461.0,68460.0,0.008652]
[1730630338261,0.449907,68461.0,68460.0,0.004652]
[1730630338639,0.448907,68461.0,68460.0,0.001652]
[1730630339166,0.448907,68461.0,68460.0,0.002652]
[1730630340019,0.448907,68461.0,68460.0,0.003652]
[1730630341898,0.401407,68461.0,68460.0,0.003652]
[1730630342103,0.401407,68461.0,68460.0,0.149722]
[1730630342312,0.401407,68461.0,68460.0,0.003652]
[1730630343454,0.41507322,68461.0,68460.0,0.003652]
[1730630345848,0.401407,68461.0,68460.0,0.003652]
[1730630347427,0.77943971,68461.0,68460.0,0.003652]
[1730630350150,0.77943971,68461.0,68460.0,0.002652]
[1730630350571,0.77943971,68461.0,68460.0,0.003652]
[1730630350902,0.77943918,68461.0,68460.0,0.002652]
[1730630351355,0.78043918,68461.0,68460.0,0.001652]
[1730630351679,0.78143918,68461.0,68460.0,0.001652]
[1730630352855,0.69264808,68461.0,68460.0,0.001652]
[1730630353042,0.69064808,68461.0,68460.0,0.001652]
[1730630353355,0.69364808,68461.0,68460.0,0.001652]
[1730630353511,0.69664808,68461.0,68460.0,0.001652]
[1730630354379,0.682975,68461.0,68460.0,0.001652]
[1730630354585,0.69664792,68461.0,68460.0,0.001652]
[1730630355562,0.536907,68461.0,68460.0,0.001652]
[1730630355786,0.42108094,68461.0,68460.0,0.001652]
[1730630358205,0.407407,68461.0,68460.0,0.001652]
[1730630358428,0.4210837,68461.0,68460.0,0.001652]
[1730630359027,0.4210837,68461.0,68460.0,0.29351904]
[1730630359211,0.4210837,68461.0,68460.0,0.37264239]
[1730630359413,0.407407,68461.0,68460.0,0.37264239]
[1730630359828,0.404407,68461.0,68460.0,0.37264239]
[1730630360171,0.401407,68461.0,68460.0,0.29751904]
[1730630360599,0.402407,68461.0,68460.0,0.29651904]
[1730630360799,0.401407,68461.0,68460.0,0.29351904]
[1730630361005,0.402407,68461.0,68460.0,0.29751904]
[1730630361213,0.403407,68461.0,68460.0,0.30051904]
[1730630364760,0.40273241,68461.0,68460.0,0.30051904]
[1730630367473,0.40273241,68461.0,68460.0,0.32351904]
[1730630367691,0.40273241,68461.0,68460.0,0.61316574]
[1730630368032,0.40273241,68461.0,68460.0,0.71816574]
[1730630368369,0.40273241,68461.0,68460.0,0.94377876]
[1730630368596,0.40273241,68461.0,68460.0,0.87858642]
[1730630370690,0.40273241,68461.0,68460.0,1.24691204]
[1730630370949,0.40273241,68461.0,68460.0,0.96470977]
[1730630371163,0.37351841,68461.0,68460.0,1.03918149]
[1730630371386,0.37351841,68461.0,68460.0,0.96005814]
[1730630372041,0.28587641,68461.0,68460.0,0.96005814]
[1730630372271,0.22644841,68461.0,68460.0,1.77756977]
[1730630372484,0.22644841,68461.0,68460.0,1.82278467]
[1730630372694,0.16902041,68461.0,68460.0,1.78656977]
[1730630373119,0.16902041,68461.0,68460.0,1.77456977]
[1730630373120,0.07937841,68461.0,68460.0,1.77456977]
[1730630373544,0.08137841,68461.0,68460.0,1.79256977]
[1730630373761,0.08037841,68461.0,68460.0,1.78356977]
[1730630374178,0.08137841,68461.0,68460.0,1.79256977]
[1730630376038,0.08137841,68461.0,68460.0,1.71344642]
[1730630376976,0.08137841,68461.0,68460.0,1.79256977]
[1730630377213,0.08137841,68461.0,68460.0,1.79056977]
[1730630377671,0.08137841,68461.0,68460.0,1.90084725]
[1730630378596,0.08137841,68461.0,68460.0,1.79256977]
[1730630378846,0.08137841,68461.0,68460.0,1.70844642]
[1730630379079,0.08137841,68461.0,68460.0,1.71344642]
[1730630379407,0.08137841,68461.0,68460.0,1.80002702]
[1730630380369,0.08219741,68461.0,68460.0,1.80002702]
[1730630381747,0.08219741,68461.0,68460.0,1.10002702]
[1730630381950,0.08219741,68461.0,68460.0,1.00444642]
[1730630381951,0.08119741,68461.0,68460.0,1.00444642]
[1730630382172,0.000819,68465.0,68464.0,0.281062]
[1730630382473,0.000819,68465.0,68464.0,0.50598239]
[1730630382877,0.000819,68465.0,68464.0,0.56440239]
[1730630383745,0.001819,68465.0,68464.0,0.57240239]
[1730630383961,0.002819,68465.0,68464.0,0.58040239]
[1730630386569,0.002819,68465.0,68464.0,0.60961239]
[1730630388066,0.002819,68465.0,68464.0,0.68873574]
[1730630388624,0.002819,68465.0,68464.0,0.7319902]
[1730630389072,0.002819,68465.0,68464.0,0.73199077]
[1730630390245,0.002819,68465.0,68464.0,1.43199077]
[1730630391107,0.002819,68465.0,68464.0,1.43198851]
[1730630392241,0.002819,68465.0,68464.0,1.61328868]
[1730630392487,0.002819,68465.0,68464.0,0.91328868]
[1730630393350,0.002819,68465.0,68464.0,0.91702551]
[1730630395117,0.002819,68465.0,68464.0,1.07082551]
[1730630395402,0.002819,68465.0,68464.0,1.61702551]
[1730630395862,0.000819,68472.0,68471.0,0.4392937]
[1730630396118,0.21984347,68472.0,68471.0,0.58509074]
[1730630396358,0.000819,68472.0,68471.0,0.58509074]
[1730630397247,0.21902447,68480.0,68479.0,0.123]
[1730630397473,0.21902447,68480.0,68479.0,0.49395039]
[1730630397691,0.30242447,68490.0,68486.0,0.146015]
[1730630397912,0.30242447,68490.0,68486.0,0.39393539]
[1730630398565,0.35706,68487.0,68486.0,0.39393539]
[1730630399027,0.35806,68487.0,68486.0,0.40293539]
[1730630400240,0.35806,68487.0,68486.0,0.41093539]
[1730630400653,0.35806,68487.0,68486.0,0.33181204]
[1730630405061,0.358879,68487.0,68486.0,0.33181204]
[1730630406176,0.37256689,68487.0,68486.0,0.33181204]
[1730630406636,0.358879,68487.0,68486.0,0.33552798]
[1730630406843,0.37256691,68487.0,68486.0,0.33552798]
[1730630407199,0.37756691,68487.0,68486.0,0.33181204]
[1730630407401,0.45596691,68487.0,68486.0,0.18579704]
[1730630408398,0.45496691,68487.0,68486.0,0.17679704]
[1730630408648,0.45496691,68487.0,68486.0,0.17879704]
[1730630409517,0.45496691,68487.0,68486.0,0.17079704]
[1730630409724,0.45496691,68487.0,68486.0,0.17279704]
[1730630410688,0.45496691,68487.0,68486.0,0.31881204]
[1730630411412,0.45496691,68487.0,68486.0,0.17279704]
[1730630411636,0.45496691,68487.0,68486.0,0.31881204]
[1730630414241,0.441279,68487.0,68486.0,0.31881204]
[1730630414447,0.45496803,68487.0,68486.0,0.31881204]
[1730630417533,0.441279,68487.0,68486.0,0.31881204]
[1730630417747,0.45496844,68487.0,68486.0,0.31881204]
[1730630420113,0.45496844,68487.0,68486.0,0.17279704]
[1730630421055,0.45496844,68487.0,68486.0,0.17079704]
[1730630421482,0.45496844,68487.0,68486.0,0.16879704]
[1730630421683,0.45496844,68487.0,68486.0,0.17079704]
[1730630422291,0.45596844,68487.0,68486.0,0.16879704]
[1730630422450,0.45796844,68487.0,68486.0,0.16879704]
[1730630424973,0.444279,68487.0,68486.0,0.16879704]
[1730630425179,0.45796752,68487.0,68486.0,0.16879704]
[1730630427129,0.45696752,68487.0,68486.0,0.16879704]
[1730630427385,0.443279,68487.0,68486.0,0.16879704]
[1730630427529,0.45696746,68487.0,68486.0,0.16979704]
[1730630427740,0.45496746,68487.0,68486.0,0.16979704]
[1730630427946,0.45496746,68487.0,68486.0,0.16879704]
[1730630428209,0.45496746,68487.0,68486.0,0.17079704]
[1730630428626,0.45496746,68487.0,68486.0,0.31681204]
[1730630428845,0.45496746,68487.0,68486.0,0.17079704]
[1730630430668,0.441279,68487.0,68486.0,0.17079704]
[1730630434789,0.45497062,68487.0,68486.0,0.17079704]
[1730630437613,0.45497298,68487.0,68486.0,0.17079704]
[1730630441913,0.45497326,68487.0,68486.0,0.17079704]
[1730630442543,0.37657326,68487.0,68486.0,0.17079704]
[1730630450854,0.33017326,68487.0,68486.0,0.31681204]
[1730630451074,0.32517326,68487.0,68486.0,0.31681204]
[1730630453223,0.311479,68487.0,68486.0,0.31681204]
[1730630453606,0.32517461,68487.0,68486.0,0.31681204]
[1730630454943,0.32517435,68487.0,68486.0,0.31681204]
[1730630455800,0.32517435,68487.0,68486.0,0.39593539]
[1730630460470,0.32517435,68487.0,68486.0,0.74085986]
[1730630460682,0.311479,68487.0,68486.0,0.86360858]
[1730630461308,0.311479,68487.0,68486.0,0.86160858]
[1730630461470,0.311479,68487.0,68486.0,1.03743403]
[1730630461668,0.311479,68487.0,68486.0,0.90592599]
[1730630461876,0.311479,68487.0,68486.0,0.83960858]
[1730630462033,0.311479,68487.0,68486.0,0.84860858]
[1730630462034,0.312479,68487.0,68486.0,0.84860858]
[1730630462242,0.313479,68487.0,68486.0,0.85660858]
[1730630462650,0.313479,68487.0,68486.0,0.88612625]
[1730630462877,0.313479,68487.0,68486.0,0.65158523]
[1730630463079,0.313479,68487.0,68486.0,0.73850727]
[1730630463304,0.313479,68487.0,68486.0,0.16579704]
[1730630463502,0.313479,68487.0,68486.0,0.31181204]
[1730630464132,0.312479,68487.0,68486.0,0.29981204]
[1730630464562,0.311479,68487.0,68486.0,0.30381204]
[1730630464907,0.315479,68487.0,68486.0,0.29181204]
[1730630465236,0.315479,68487.0,68486.0,0.29281204]
[1730630465839,0.311479,68487.0,68486.0,0.29181204]
[1730630466531,0.31233869,68487.0,68486.0,0.29181204]
[1730630467787,0.31133869,68487.0,68486.0,0.29181204]
[1730630468130,0.31233869,68487.0,68486.0,0.29581204]
[1730630468774,0.31233869,68487.0,68486.0,0.29181204]
[1730630468949,0.31233869,68487.0,68486.0,0.29581204]
[1730630472566,0.31233869,68487.0,68486.0,0.90419239]
[1730630472765,0.31233869,68487.0,68486.0,0.68516792]
[1730630473080,0.31233869,68487.0,68486.0,0.68680592]
[1730630473490,0.31233869,68487.0,68486.0,0.68880592]
[1730630473894,0.31133869,68487.0,68486.0,0.68880592]
[1730630474354,0.31233869,68487.0,68486.0,0.69680592]
[1730630474659,0.31233869,68487.0,68486.0,0.69280592]
[1730630474784,0.31233869,68487.0,68486.0,0.69080592]
[1730630475011,0.31233869,68487.0,68486.0,0.70280592]
[1730630477263,0.31233869,68487.0,68486.0,0.70257455]
[1730630479039,0.31233869,68487.0,68486.0,0.70457455]
[1730630479243,0.31233869,68487.0,68486.0,0.7045352]
[1730630480776,0.31233869,68487.0,68486.0,0.78365855]
[1730630480979,0.00082,68500.0,68499.0,0.32771035]
[1730630481189,0.00082,68500.0,68499.0,0.47350739]
[1730630481388,0.00082,68500.0,68499.0,0.39438404]
[1730630482155,0.00082,68500.0,68499.0,0.39538404]
[1730630482623,0.00482,68500.0,68499.0,0.39538404]
[1730630483707,0.00482,68500.0,68499.0,0.39894556]
[1730630484111,0.00482,68500.0,68499.0,0.31934556]
[1730630485810,0.00482,68500.0,68499.0,0.31578404]
[1730630486006,0.00482,68500.0,68499.0,0.14679704]
[1730630486007,0.09162,68500.0,68499.0,0.14679704]
[1730630486207,0.13982,68500.0,68499.0,0.14679704]
[1730630491089,0.13982,68500.0,68499.0,0.39490739]
[1730630491090,0.00482,68500.0,68499.0,0.39490739]
[1730630495900,0.00482,68500.0,68499.0,0.60243074]
[1730630496752,0.00482,68500.0,68499.0,0.63065074]
[1730630496951,0.00082,68500.0,68499.0,0.63065074]
[1730630497152,0.00082,68500.0,68499.0,0.64865074]
[1730630497528,0.00082,68500.0,68499.0,0.64165074]
[1730630497671,0.00082,68500.0,68499.0,0.60373025]
[1730630497882,0.00082,68500.0,68499.0,0.61573025]
[1730630500352,0.00082,68500.0,68499.0,0.61773025]
[1730630500755,0.00082,68500.0,68499.0,0.61573025]
[1730630500940,0.00082,68500.0,68499.0,0.6590899]
[1730630501813,0.00082,68500.0,68499.0,0.61573025]
[1730630501990,0.00082,68500.0,68499.0,0.6590899]
[1730630502595,0.00082,68500.0,68499.0,0.61573025]
[1730630502975,0.00082,68500.0,68499.0,0.6590899]
[1730630503358,0.00082,68500.0,68499.0,0.61573025]
[1730630503562,0.00082,68500.0,68499.0,0.6590899]
[1730630507688,0.00082,68500.0,68499.0,0.61573025]
[1730630508267,0.00082,68500.0,68499.0,0.65909101]
[1730630511463,0.00082,68500.0,68499.0,0.61573025]
[1730630513754,0.00082,68500.0,68499.0,0.56973025]
[1730630514224,0.00082,68500.0,68499.0,0.53070366]
[1730630514671,0.00082,68500.0,68499.0,0.48733025]
[1730630515818,0.00082,68500.0,68499.0,0.45811025]
[1730630516701,0.00082,68500.0,68499.0,0.52319107]
[1730630516915,0.00082,68500.0,68499.0,0.71259553]
[1730630517323,0.00082,68500.0,68499.0,0.55241107]
[1730630517529,0.00082,68500.0,68499.0,0.64752339]
[1730630517730,0.00082,68500.0,68499.0,0.67126108]
[1730630518563,0.00082,68500.0,68499.0,0.6061761]
[1730630520631,0.00082,68500.0,68499.0,0.60616422]
[1730630522515,0.00082,68500.0,68499.0,0.69295026]
[1730630525917,0.00082,68500.0,68499.0,0.60616422]
[1730630527255,0.00082,68500.0,68499.0,0.69295577]
[1730630527455,0.00082,68500.0,68499.0,0.60616422]
[1730630527965,0.00082,68500.0,68499.0,0.60616879]
[1730630528910,0.00082,68500.0,68499.0,0.69297657]
[1730630529482,0.00082,68500.0,68499.0,0.6929806]
[1730630530993,0.00082,68500.0,68499.0,0.60616879]
[1730630531192,0.00082,68500.0,68499.0,0.69297753]
[1730630532555,0.00082,68500.0,68499.0,0.60616879]
[1730630533699,0.00082,68500.0,68499.0,0.71465443]
[1730630534805,0.00082,68500.0,68499.0,0.60616879]
[1730630535962,0.00082,68500.0,68499.0,0.73042854]
[1730630537705,0.00082,68500.0,68499.0,0.86061131]
[1730630537911,0.00082,68500.0,68499.0,0.99091131]
[1730630538537,0.00082,68500.0,68499.0,0.93970746]
[1730630538965,0.00082,68500.0,68499.0,0.86072854]
[1730630539221,0.00082,68500.0,68499.0,0.86272854]
[1730630539421,0.00082,68500.0,68499.0,1.56272854]
[1730630539667,0.00082,68500.0,68499.0,1.55172854]
[1730630539871,0.00082,68500.0,68499.0,1.55272854]
[1730630540270,0.00082,68500.0,68499.0,1.56372854]
[1730630541358,0.00082,68500.0,68499.0,1.65143854]
[1730630543593,0.29942447,68520.0,68519.0,0.168944]
[1730630543805,0.29942447,68520.0,68519.0,0.39371996]
[1730630544015,0.0804,68520.0,68519.0,0.39371996]
[1730630544798,0.0804,68520.0,68519.0,0.39771996]
[1730630544972,0.0814,68520.0,68519.0,0.39771996]
[1730630545859,0.0814,68520.0,68519.0,0.14979704]
[1730630545860,0.1351,68520.0,68519.0,0.14979704]
[1730630546059,0.29470296,68520.0,68519.0,0.14979704]
[1730630546490,0.29970296,68520.0,68519.0,0.14979704]
[1730630549250,0.286042,68520.0,68519.0,0.14979704]
[1730630549451,0.29970481,68520.0,68519.0,0.14979704]
[1730630552183,0.29970584,68520.0,68519.0,0.14979704]
[1730630552966,0.30052484,68520.0,68519.0,0.14979704]
[1730630553373,0.3005253,68520.0,68519.0,0.14979704]
[1730630554072,0.3005253,68520.0,68519.0,0.004]
[1730630554281,0.42603792,68520.0,68519.0,0.004]
[1730630554512,0.3005253,68520.0,68519.0,0.004]
[1730630555368,0.2995253,68520.0,68519.0,0.004]
[1730630555617,0.0487,68511.0,68508.0,0.22274404]
[1730630555814,0.0487,68511.0,68509.0,0.14579704]
[1730630558079,0.0487,68511.0,68509.0,0.15179704]
[1730630558538,0.005,68510.0,68509.0,0.15179704]
[1730630558740,0.0987648,68510.0,68509.0,0.15179704]
[1730630558897,0.0987648,68510.0,68509.0,0.15279704]
[1730630559281,0.0987648,68510.0,68509.0,0.14579704]
[1730630559560,0.0987648,68510.0,68509.0,0.15079704]
[1730630560102,0.0987648,68510.0,68509.0,0.14579704]
[1730630560305,0.0987648,68510.0,68509.0,0.14979704]
[1730630561297,0.1484648,68510.0,68509.0,0.14979704]
[1730630563618,0.1348,68510.0,68509.0,0.14979704]
[1730630563823,0.1348,68510.0,68509.0,0.29576304]
[1730630564041,0.1348,68510.0,68509.0,0.14979704]
[1730630567837,0.1348,68510.0,68509.0,0.29576304]
[1730630568084,0.1348,68510.0,68509.0,0.14979704]
[1730630570729,0.280764,68510.0,68509.0,0.14979704]
[1730630570933,0.29442717,68510.0,68509.0,0.14979704]
[1730630571366,0.29942717,68510.0,68509.0,0.14979704]
[1730630572163,0.01466317,68510.0,68509.0,0.39774196]
[1730630572365,0.001,68510.0,68509.0,0.39774196]
[1730630572963,0.001,68510.0,68509.0,0.39374196]
[1730630573415,0.005,68517.0,68516.0,0.145951]
[1730630573666,0.01866598,68517.0,68516.0,0.29174804]
[1730630574816,0.01966598,68517.0,68516.0,0.29174804]
[1730630575430,0.01966598,68517.0,68516.0,0.29574804]
[1730630576524,0.01966598,68517.0,68516.0,0.32496804]
[1730630576741,0.01966598,68517.0,68516.0,0.29574804]
[1730630577195,0.02048498,68517.0,68516.0,0.14979704]
[1730630577450,0.02048498,68517.0,68516.0,0.29574804]
[1730630578792,0.01548498,68517.0,68516.0,0.47670588]
[1730630579014,0.001819,68517.0,68516.0,0.55751053]
[1730630579221,0.001819,68517.0,68516.0,0.47853161]
[1730630579425,0.001819,68517.0,68516.0,0.47453161]
[1730630579834,0.001819,68517.0,68516.0,0.48153161]
[1730630580286,0.001819,68517.0,68516.0,0.47453161]
[1730630580457,0.000819,68517.0,68516.0,0.47453161]
[1730630580801,0.000819,68517.0,68516.0,0.47653161]
[1730630581040,0.000819,68517.0,68516.0,0.47453161]
[1730630581718,0.000819,68517.0,68516.0,0.48553161]
[1730630581923,0.000819,68517.0,68516.0,0.49353161]
[1730630583053,0.000819,68517.0,68516.0,0.62201053]
[1730630583439,0.000819,68517.0,68516.0,0.66541011]
[1730630584346,0.000819,68517.0,68516.0,0.62201053]
[1730630589130,0.000819,68517.0,68516.0,0.62401053]
[1730630590714,0.000819,68517.0,68516.0,0.62201053]
[1730630591138,0.000819,68530.0,68528.0,0.168925]
[1730630591433,0.000819,68530.0,68528.0,0.68711034]
[1730630591640,0.000819,68530.0,68528.0,0.67010988]
[1730630591792,0.000819,68530.0,68528.0,0.73506389]
[1730630592000,0.000819,68530.0,68528.0,0.82986381]
[1730630592198,0.000819,68530.0,68528.0,0.89574038]
[1730630592822,0.000819,68530.0,68528.0,0.89474038]
[1730630593047,0.000819,68530.0,68528.0,0.90563971]
[1730630593210,0.000819,68530.0,68528.0,0.74595039]
[1730630593443,0.000819,68530.0,68528.0,0.85266961]
[1730630593686,0.000819,68530.0,68528.0,0.81490877]
[1730630593894,0.000819,68530.0,68528.0,0.88951411]
[1730630594121,0.000819,68530.0,68528.0,0.90151411]
[1730630594359,0.000819,68530.0,68528.0,0.8796257]
[1730630595322,0.000819,68530.0,68528.0,0.65534904]
[1730630595759,0.000819,68530.0,68528.0,0.69853068]
[1730630596003,0.000819,68530.0,68528.0,0.65534904]
[1730630596625,0.000819,68530.0,68528.0,0.69651761]
[1730630597379,0.000827,68541.0,68528.0,0.69651761]
[1730630597380,0.000827,68541.0,68540.0,0.023]
[1730630597651,0.000827,68541.0,68540.0,0.80163821]
[1730630597872,0.000827,68541.0,68540.0,0.84016412]
[1730630598292,0.000827,68541.0,68540.0,0.84216412]
[1730630598908,0.000827,68541.0,68540.0,0.85416412]
[1730630599108,0.000827,68541.0,68540.0,0.84216412]
[1730630599308,0.000827,68541.0,68540.0,0.85316412]
[1730630599524,0.000827,68541.0,68540.0,0.73296712]
[1730630599728,0.000827,68541.0,68540.0,0.72196712]
[1730630600470,0.000827,68541.0,68540.0,0.73396712]
[1730630600675,0.000827,68541.0,68540.0,0.72196712]
[1730630600874,0.000827,68556.0,68549.0,0.168881]
[1730630601074,0.000827,68556.0,68549.0,0.47631812]
[1730630602324,0.000827,68556.0,68549.0,0.48831812]
[1730630603856,0.000827,68556.0,68549.0,0.66128504]
[1730630604130,0.000827,68556.0,68549.0,0.70472812]
[1730630604353,0.000827,68556.0,68549.0,0.70272812]
[1730630604535,0.000827,68556.0,68549.0,0.71372812]
[1730630605253,0.000827,68556.0,68549.0,0.71572812]
[1730630606645,0.000827,68556.0,68549.0,0.71372812]
[1730630606851,0.000827,68556.0,68549.0,0.62767704]
[1730630607046,0.000827,68556.0,68549.0,0.61567704]
[1730630607476,0.000827,68556.0,68549.0,0.61667704]
[1730630607709,0.000827,68556.0,68549.0,0.66912012]
[1730630608263,0.000827,68556.0,68549.0,0.65812012]
[1730630608472,0.000827,68556.0,68549.0,0.66912012]
[1730630608904,0.000827,68556.0,68549.0,0.62767704]
[1730630609882,0.000827,68556.0,68549.0,0.62967704]
[1730630610260,0.000827,68556.0,68549.0,0.67537704]
[1730630611267,0.000827,68556.0,68549.0,0.59687704]
[1730630611762,0.000827,68556.0,68549.0,0.62609704]
[1730630614321,0.000827,68556.0,68549.0,0.53838704]
[1730630615167,0.000827,68556.0,68549.0,0.51538704]
[1730630615601,0.000827,68556.0,68549.0,0.53838704]
[1730630615808,0.000827,68556.0,68549.0,0.52638704]
[1730630615997,0.21902447,68570.0,68555.0,0.01]
[1730630616222,0.01358918,68569.0,68562.0,0.023]
[1730630616523,0.01358918,68568.0,68567.0,0.023]
[1730630616718,0.01358918,68568.0,68567.0,0.16879704]
[1730630617139,0.01359582,68568.0,68567.0,0.16879704]
[1730630617580,0.291658,68574.0,68567.0,0.16879704]
[1730630617581,0.437488,68573.0,68567.0,0.16879704]
[1730630617751,0.145835,68571.0,68568.0,0.14579704]
[1730630617984,0.01360426,68570.0,68568.0,0.14579704]
[1730630618238,0.01360426,68569.0,68568.0,0.16879704]
[1730630619078,0.01361486,68569.0,68568.0,0.16879704]
[1730630619319,0.14101486,68569.0,68568.0,0.16879704]
[1730630620387,0.14101486,68569.0,68568.0,0.14579704]
[1730630620598,0.13920882,68569.0,68568.0,0.14579704]
[1730630621032,0.1284,68569.0,68568.0,0.14579704]
[1730630621928,0.1274,68569.0,68568.0,0.14579704]
[1730630622130,0.1284,68569.0,68568.0,0.14579704]
[1730630622951,0.274238,68569.0,68568.0,0.14579704]
[1730630623322,0.273238,68569.0,68568.0,0.14579704]
[1730630623728,0.1344,68569.0,68568.0,0.14679704]
[1730630624137,0.281057,68569.0,68568.0,0.001]
[1730630625566,0.281057,68569.0,68568.0,0.14679704]
[1730630626145,0.30290746,68569.0,68568.0,0.14679704]
[1730630628455,0.15706946,68569.0,68568.0,0.14679704]
[1730630628651,0.15708641,68569.0,68568.0,0.14679704]
[1730630629373,0.07738641,68569.0,68568.0,0.14679704]
[1730630630160,0.07738641,68569.0,68568.0,0.29263704]
[1730630630953,0.02968641,68569.0,68568.0,0.29263704]
[1730630632149,0.02968249,68569.0,68568.0,0.29263704]
[1730630632527,0.04334697,68569.0,68568.0,0.29263704]
[1730630636022,0.04334532,68569.0,68568.0,0.29427304]
[1730630637160,0.03634532,68569.0,68568.0,0.29327304]
[1730630637380,0.04334532,68569.0,68568.0,0.29427304]
[1730630637824,0.03634532,68569.0,68568.0,0.29327304]
[1730630638038,0.04334532,68569.0,68568.0,0.29427304]
[1730630639782,0.007819,68569.0,68568.0,0.29427304]
[1730630640017,0.04334564,68569.0,68568.0,0.29427304]
[1730630640257,0.007819,68569.0,68568.0,0.29427304]
[1730630640479,0.04334567,68569.0,68568.0,0.29427304]
[1730630644022,0.0214831,68569.0,68568.0,0.29427304]
[1730630644827,0.04334425,68569.0,68568.0,0.29427304]
[1730630645020,0.04334425,68569.0,68568.0,0.40017304]
[1730630645265,0.0214831,68569.0,68568.0,0.40017304]
[1730630645891,0.0214831,68569.0,68568.0,0.31727304]
[1730630646544,0.02148128,68569.0,68568.0,0.31727304]
[1730630650269,0.007819,68569.0,68568.0,0.31727304]
[1730630650479,0.02148014,68569.0,68568.0,0.31727304]
[1730630650898,0.02148014,68569.0,68568.0,0.14843304]
[1730630651169,0.04333826,68569.0,68568.0,0.14843304]
[1730630652880,0.04333908,68569.0,68568.0,0.14843304]
[1730630654345,0.007819,68569.0,68568.0,0.14843304]
[1730630654760,0.04334426,68569.0,68568.0,0.14843304]
[1730630658404,0.04336675,68569.0,68568.0,0.14843304]
[1730630660239,0.04336675,68569.0,68568.0,0.29427304]
[1730630660455,0.04336675,68569.0,68568.0,0.14843304]
[1730630660669,0.04336675,68569.0,68568.0,0.29427304]